bitfinex/quotes_ETHUSD_20250608
["timestamp","ask_amount","ask_price","bid_price","bid_amount"]
[1749404498985,8.062,2532.1,2532.0,25.44508898]
[1749404499186,8.063,2532.1,2532.0,25.44508898]
[1749404499609,1.36629488,2532.5,2532.3,3.94897918]
[1749404499803,8.062,2532.4,2532.3,3.94897918]
[1749404500006,1.36629488,2532.5,2532.3,3.94897918]
[1749404500205,1.36629488,2532.5,2532.4,9.44446516]
[1749404500411,9.42829488,2532.5,2532.3,3.94889692]
[1749404500709,9.42829488,2532.5,2532.2,9.44474471]
[1749404501033,9.42829488,2532.5,2532.3,3.94896814]
[1749404501194,9.42829488,2532.5,2532.2,5.49564191]
[1749404501398,0.7888,2532.4,2532.0,16.0]
[1749404501598,0.7888,2532.4,2532.0,19.94936108]
[1749404502295,4.73762928,2532.4,2532.0,16.0]
[1749404502500,0.7888,2532.4,2532.0,16.0]
[1749404502695,0.7888,2532.4,2532.0,19.94942821]
[1749404503312,6.41912319,2532.4,2532.0,16.0]
[1749404503512,6.41912199,2532.4,2531.9,16.0]
[1749404503808,3.94906368,2532.3,2531.7,3.94984171]
[1749404504025,10.37018677,2532.2,2531.7,3.94984171]
[1749404504338,10.37018677,2532.2,2531.8,16.0]
[1749404506616,6.421,2532.2,2531.8,19.94974824]
[1749404507508,0.7767,2532.1,2530.9,5.01102546]
[1749404507852,0.7767,2532.1,2531.6,16.0]
[1749404508058,0.7767,2532.1,2531.8,16.0]
[1749404514465,0.7767,2532.1,2531.8,19.94974124]
[1749404515127,0.7767,2532.1,2531.8,16.0]
[1749404515668,6.419,2532.0,2531.8,16.0]
[1749404515863,1.656,2531.9,2531.8,16.0]
[1749404517570,1.656,2531.9,2531.8,19.94975906]
[1749404519609,1.656,2531.9,2531.7,19.94991507]
[1749404519790,6.414,2531.8,2531.6,5.49564191]
[1749404520304,6.414,2531.8,2531.7,3.9498037]
[1749404524622,6.414,2531.8,2531.7,19.9498037]
[1749404533034,6.414,2531.8,2531.7,16.0]
[1749404533224,8.24736451,2531.8,2531.7,16.0]
[1749404535537,8.24736451,2531.8,2531.4,19.95029133]
[1749404535831,0.94738451,2531.7,2531.4,19.95029133]
[1749404536034,7.2396,2531.6,2531.4,16.0]
[1749404537222,7.2396,2531.6,2531.2,19.95062001]
[1749404537555,8.44714241,2531.6,2531.4,16.0]
[1749404539943,12.3972329,2531.6,2531.2,16.0]
[1749404540257,1.79178374,2531.5,2531.2,16.0]
[1749404540562,7.3570695,2531.4,2531.2,16.0]
[1749404540735,1.649,2531.3,2531.2,16.0]
[1749404541052,2.4632,2531.3,2531.2,16.0]
[1749404541818,2.4632,2531.3,2531.1,16.0]
[1749404542018,6.411,2531.2,2531.1,16.0]
[1749404542271,6.411,2531.2,2531.0,16.0]
[1749404542558,6.411,2531.2,2531.0,19.95099743]
[1749404542717,6.411,2531.2,2531.0,16.0]
[1749404544159,6.411,2531.2,2531.0,19.95100301]
[1749404545261,7.29842,2531.2,2530.6,0.796]
[1749404545576,7.29842,2531.2,2530.8,16.0]
[1749404546457,11.24912881,2531.2,2530.8,16.0]
[1749404546848,7.29842,2531.2,2530.8,16.0]
[1749404547046,7.29842,2531.2,2530.8,19.9512909]
[1749404547368,1.14850246,2531.1,2530.8,19.9512909]
[1749404547573,6.41,2531.0,2530.8,16.0]
[1749404548038,6.41,2531.0,2530.8,25.44694347]
[1749404549383,6.41,2531.0,2530.8,21.49564191]
[1749404550392,6.41,2531.0,2530.8,25.44688828]
[1749404550687,0.824,2530.9,2530.8,21.49564191]
[1749404550849,0.824,2530.9,2530.8,25.44696165]
[1749404551550,6.41,2531.0,2530.8,25.44696165]
[1749404554889,6.41,2531.0,2530.9,3.95116361]
[1749404555682,6.41,2531.0,2530.8,21.49564191]
[1749404555683,6.41,2531.0,2530.8,25.44693016]
[1749404555858,7.33699225,2531.0,2530.8,3.95128825]
[1749404556754,7.33699225,2531.0,2530.7,16.0]
[1749404556955,7.33699225,2531.0,2530.7,19.95141449]
[1749404557985,7.33699225,2531.0,2530.8,3.95130083]
[1749404558297,7.33699225,2531.0,2530.7,19.95137263]
[1749404559192,0.81609923,2530.9,2530.7,3.95137263]
[1749404559391,6.405,2530.8,2530.6,9.44718279]
[1749404559563,1.649,2530.7,2530.6,25.44718279]
[1749404559891,1.649,2530.7,2530.6,16.0]
[1749404560260,1.649,2530.7,2530.4,9.4475042]
[1749404560593,6.405,2530.6,2530.5,16.0]
[1749404562661,6.405,2530.6,2530.4,16.0]
[1749404563432,7.68163074,2530.6,2530.4,16.0]
[1749404567483,7.68163074,2530.6,2530.4,19.95191388]
[1749404567722,6.405,2530.6,2530.5,3.95178818]
[1749404569729,6.405,2530.6,2530.4,25.44751889]
[1749404573432,6.405,2530.6,2530.5,19.95178818]
[1749404576751,6.405,2530.6,2530.5,16.0]
[1749404582339,7.3522263,2530.6,2530.5,16.0]
[1749404587539,8.9982263,2530.6,2530.5,16.0]
[1749404590580,10.48755609,2530.6,2530.5,16.0]
[1749404590884,11.31105609,2530.6,2530.5,16.0]
[1749404591984,15.26268811,2530.6,2530.5,16.0]
[1749404592693,11.31105609,2530.6,2530.5,16.0]
[1749404592874,11.68148661,2530.6,2530.5,16.0]
[1749404593384,15.63311863,2530.6,2530.5,16.0]
[1749404593580,15.63311863,2530.6,2530.1,3.95241117]
[1749404593772,2.51053816,2530.5,2530.2,16.0]
[1749404594084,6.406,2530.4,2530.2,16.0]
[1749404595296,0.94813424,2530.3,2530.0,3.95250275]
[1749404595448,6.406,2530.2,2530.1,16.0]
[1749404596348,6.406,2530.2,2530.0,16.0]
[1749404596551,6.406,2530.2,2530.1,3.95241294]
[1749404596780,7.1737,2530.2,2530.0,16.0]
[1749404597148,7.1737,2530.2,2529.9,3.95264117]
[1749404597451,0.9476517,2530.1,2529.8,16.0]
[1749404597652,0.9476517,2530.1,2529.6,0.8145]
[1749404597653,8.052,2530.0,2529.6,0.8145]
[1749404597852,8.052,2530.0,2529.4,10.26359291]
[1749404598049,5.66819059,2529.9,2529.4,4.76794586]
[1749404598260,6.406,2529.8,2529.5,16.0]
[1749404598678,6.406,2529.8,2529.5,3.95331803]
[1749404598950,6.406,2529.8,2529.6,16.0]
[1749404599549,6.406,2529.8,2529.5,16.0]
[1749404601050,6.406,2529.8,2529.6,3.95315058]
[1749404601291,6.406,2529.8,2529.5,19.95327719]
[1749404601488,0.36947288,2530.1,2530.0,3.95256916]
[1749404601673,8.052,2530.1,2530.0,5.49564191]
[1749404601874,1.13993221,2530.4,2530.0,9.44821107]
[1749404602061,6.69756041,2530.5,2530.2,5.49564191]
[1749404602062,8.99741449,2530.3,2530.2,5.49564191]
[1749404602261,8.052,2530.3,2530.2,9.44789864]
[1749404602461,1.646,2530.3,2530.2,5.49564191]
[1749404602689,0.945318,2530.4,2530.2,5.49564191]
[1749404602983,8.053,2530.3,2530.2,5.49564191]
[1749404604165,8.053,2530.3,2530.0,9.4481467]
[1749404604783,8.053,2530.3,2530.0,5.49564191]
[1749404604989,8.053,2530.3,2530.0,9.44818104]
[1749404605987,8.053,2530.3,2530.0,5.49564191]
[1749404606284,8.053,2530.3,2530.0,16.0]
[1749404606498,9.25349453,2530.3,2530.0,16.0]
[1749404607169,13.20560333,2530.3,2529.9,0.758]
[1749404607370,4.77824962,2530.2,2529.7,3.95295452]
[1749404607575,2.14646033,2530.2,2529.7,3.9530379]
[1749404607909,2.14646033,2530.2,2529.5,0.7577]
[1749404608110,4.8980587,2530.1,2529.6,3.95319144]
[1749404608313,10.35859345,2530.0,2529.5,20.71098657]
[1749404608611,12.00433449,2530.0,2529.5,19.95328657]
[1749404609513,8.05174104,2530.0,2529.6,3.95317991]
[1749404610113,12.00434701,2530.0,2529.5,19.95330934]
[1749404610421,8.05174104,2530.0,2529.5,19.95330934]
[1749404611215,12.00435647,2530.0,2529.5,19.95330934]
[1749404611519,1.20043565,2529.9,2529.5,19.95330934]
[1749404613024,1.20043565,2529.9,2529.6,3.95319362]
[1749404616012,2.14646033,2530.2,2529.8,9.44852356]
[1749404616196,8.99835544,2530.1,2529.8,9.44852356]
[1749404616402,8.053,2530.1,2529.8,5.49564191]
[1749404616601,11.17627284,2530.1,2529.8,5.49564191]
[1749404618823,15.12870076,2530.1,2529.8,5.49564191]
[1749404620437,11.17627284,2530.1,2529.8,5.49564191]
[1749404620638,15.12870585,2530.1,2529.8,5.49564191]
[1749404621337,15.12870585,2530.1,2529.4,6.25334191]
[1749404621338,11.17627284,2530.1,2529.4,6.25334191]
[1749404621514,6.23108248,2530.0,2529.6,16.0]
[1749404621719,5.28497489,2530.0,2529.6,16.0]
[1749404622034,5.28497489,2530.0,2529.5,16.0]
[1749404622352,5.28497489,2530.0,2529.5,19.9532684]
[1749404623026,5.28497489,2530.0,2529.6,3.95317439]
[1749404623209,2.59266783,2529.9,2529.6,3.95317439]
[1749404623415,6.407,2529.8,2529.6,3.95317439]
[1749404625061,3.12327284,2530.1,2529.7,3.95289359]
[1749404625240,1.646,2529.7,2529.6,9.44883609]
[1749404625555,0.8259,2530.2,2529.8,3.95284526]
[1749404625847,2.59292149,2530.1,2529.8,9.44848717]
[1749404626049,0.94692149,2530.0,2529.8,5.49564191]
[1749404626249,6.407,2530.0,2529.8,5.49564191]
[1749404627574,4.77816053,2530.2,2529.8,9.44849919]
[1749404627575,0.8259,2530.2,2529.8,9.44849919]
[1749404627787,1.646,2529.9,2529.8,5.49564191]
[1749404628244,1.646,2529.9,2529.8,9.44852356]
[1749404629267,1.646,2529.9,2529.8,5.49564191]
[1749404629969,8.053,2529.9,2529.8,5.49564191]
[1749404633046,8.053,2529.9,2529.6,9.44873421]
[1749404633444,13.20634722,2529.9,2529.5,16.0]
[1749404633665,9.25354232,2529.9,2529.5,19.95326825]
[1749404633851,8.053,2529.9,2529.6,9.44883609]
[1749404634052,8.053,2529.9,2529.7,3.95303161]
[1749404634253,8.053,2529.9,2529.6,9.44874932]
[1749404634574,8.053,2529.9,2529.7,3.95302774]
[1749404634865,8.053,2529.9,2529.6,9.44874158]
[1749404635454,8.053,2529.9,2529.7,3.9530248]
[1749404635660,8.053,2529.9,2529.6,9.4487688]
[1749404636148,8.053,2529.9,2529.7,3.9530245]
[1749404636343,8.053,2529.9,2529.6,9.44874715]
[1749404636542,0.94812728,2529.8,2529.6,5.49564191]
[1749404636748,9.25354928,2529.9,2529.6,5.49564191]
[1749404636943,0.94814236,2529.8,2529.6,5.49564191]
[1749404637143,9.25354928,2529.9,2529.6,9.44882412]
[1749404637335,0.94845784,2529.8,2529.6,9.44882412]
[1749404637666,9.25354928,2529.9,2529.6,9.44882412]
[1749404637869,9.25354928,2529.9,2529.7,3.95301663]
[1749404638435,9.25354928,2529.9,2529.6,9.44875262]
[1749404638651,8.053,2529.9,2529.7,3.95303263]
[1749404638866,8.053,2529.9,2529.6,5.49564191]
[1749404639053,0.94844531,2529.8,2529.6,9.44882498]
[1749404639371,0.94844531,2529.7,2529.6,16.0]
[1749404639532,9.00144531,2529.7,2529.6,16.0]
[1749404643673,9.81824531,2529.7,2529.6,16.0]
[1749404645065,14.32129197,2529.7,2529.1,3.95389643]
[1749404645249,14.32129197,2529.7,2528.6,4.46470729]
[1749404645250,4.74616686,2529.5,2528.6,10.20648925]
[1749404645451,7.36044531,2529.4,2529.1,16.0]
[1749404645752,0.94844531,2529.3,2529.1,16.0]
[1749404645947,7.35944531,2529.2,2529.1,16.0]
[1749404646163,6.411,2529.2,2529.1,16.0]
[1749404646377,6.411,2529.2,2529.1,3.95397572]
[1749404646576,6.411,2529.2,2529.1,19.95397572]
[1749404646778,0.7928,2529.5,2529.1,19.95397572]
[1749404646949,1.646,2529.2,2529.1,19.95397572]
[1749404647471,8.061,2529.2,2529.1,19.95397572]
[1749404652686,1.646,2529.5,2529.4,19.95350676]
[1749404652884,1.646,2529.6,2529.5,16.0]
[1749404653059,1.646,2529.6,2529.5,3.95335046]
[1749404653623,8.064,2529.6,2529.5,3.95335046]
[1749404654082,8.064,2529.6,2529.5,19.95335046]
[1749404654290,6.417,2529.6,2529.5,19.95335046]
[1749404655349,8.063,2529.6,2529.5,19.95335046]
[1749404656553,1.646,2529.6,2529.5,20.70915046]
[1749404656791,8.062,2529.6,2529.5,20.70915046]
[1749404657696,1.651,2529.9,2529.8,3.95275376]
[1749404657995,9.01334222,2529.9,2529.8,9.44839567]
[1749404659270,9.01234222,2529.9,2529.8,9.44839567]
[1749404659891,9.01234222,2529.9,2529.8,5.49564191]
[1749404661964,9.01234222,2529.9,2529.7,3.95295496]
[1749404662198,8.8692,2529.9,2529.6,9.44880322]
[1749404662570,0.94660932,2529.8,2529.6,3.9531896]
[1749404662936,8.8692,2529.9,2529.6,3.9531896]
[1749404663070,0.9466132,2529.8,2529.6,3.95319418]
[1749404663270,8.8692,2529.9,2529.6,3.95319418]
[1749404663470,0.94664453,2529.8,2529.6,3.95319418]
[1749404663812,8.8692,2529.9,2529.6,3.95319418]
[1749404663979,0.94667599,2529.8,2529.7,3.9530379]
[1749404664168,0.94667599,2529.8,2529.7,19.9530379]
[1749404667317,0.94667599,2529.8,2529.7,16.0]
[1749404670016,1.96525462,2529.8,2529.7,16.0]
[1749404670184,1.96525462,2529.8,2529.5,19.95327969]
[1749404670519,0.94667599,2529.7,2529.5,19.95327969]
[1749404670719,6.409,2529.6,2529.5,19.95327969]
[1749404671022,7.35607435,2529.6,2529.5,19.95327969]
[1749404671216,7.35607435,2529.6,2529.5,16.0]
[1749404671776,8.14577435,2529.6,2529.5,16.0]
[1749404675231,9.06220965,2529.6,2529.5,16.0]
[1749404675521,9.06220965,2529.6,2529.3,16.0]
[1749404675683,0.94707435,2529.5,2529.3,16.0]
[1749404675883,6.407,2529.4,2529.3,16.0]
[1749404676427,0.7897,2529.3,2528.7,0.7713]
[1749404676737,9.00942885,2529.2,2528.8,16.0]
[1749404676892,0.94742885,2529.1,2528.9,3.95426423]
[1749404677091,8.062,2529.2,2528.9,3.95426423]
[1749404677285,1.89684076,2529.1,2528.9,3.95426423]
[1749404677599,0.94924,2529.1,2528.9,3.95426423]
[1749404677795,0.94924,2529.1,2528.9,3.95414862]
[1749404679084,0.94924,2529.1,2528.8,16.0]
[1749404679504,0.7897,2529.0,2528.8,16.0]
[1749404679822,6.411,2528.9,2528.8,16.0]
[1749404680387,6.411,2528.9,2528.7,3.95460117]
[1749404680591,0.7897,2529.0,2528.8,3.95442185]
[1749404680795,6.411,2528.9,2528.8,3.95442185]
[1749404682333,6.411,2528.9,2528.7,16.0]
[1749404683435,7.62139976,2528.9,2528.7,16.0]
[1749404684091,6.411,2528.9,2528.7,16.0]
[1749404684288,6.411,2528.9,2528.8,5.49564191]
[1749404689302,6.411,2528.9,2528.7,16.0]
[1749404690208,6.411,2528.9,2528.8,5.49564191]
[1749404695834,8.058,2528.9,2528.8,5.49564191]
[1749404696932,8.058,2528.9,2528.8,9.4500867]
[1749404697549,8.058,2528.9,2528.8,26.26706521]
[1749404697550,8.056,2528.9,2528.8,26.26706521]
[1749404697758,1.647,2528.9,2528.8,26.26706521]
[1749404697912,8.056,2528.9,2528.8,26.26706521]
[1749404698757,8.056,2528.9,2528.8,16.0]
[1749404698907,8.056,2528.9,2528.5,5.49564191]
[1749404699107,8.8616,2528.9,2528.6,16.0]
[1749404699743,8.8616,2528.9,2528.6,19.95474678]
[1749404699954,8.8616,2528.9,2528.6,16.0]
[1749404700155,8.8616,2528.9,2528.6,19.95475325]
[1749404700546,8.056,2528.9,2528.6,25.45039516]
[1749404701251,8.056,2528.9,2528.6,21.49564191]
[1749404701657,8.056,2528.9,2528.6,25.45039651]
[1749404702156,4.77364728,2529.0,2528.6,25.45039651]
[1749404702314,9.00305802,2528.9,2528.6,21.49564191]
[1749404702519,8.057,2528.9,2528.6,25.45029476]
[1749404703559,8.057,2528.9,2528.7,3.95457436]
[1749404704659,8.057,2528.9,2528.8,3.95444479]
[1749404704821,9.00406184,2528.9,2528.8,3.95444479]
[1749404706206,9.00406184,2528.9,2528.4,5.49564191]
[1749404706458,0.94802488,2528.8,2528.7,19.95452971]
[1749404706624,8.057,2528.9,2528.8,3.95444479]
[1749404706823,9.00503537,2528.9,2528.8,3.95444479]
[1749404712537,9.00403537,2528.9,2528.8,9.4500867]
[1749404712976,0.94803537,2528.9,2528.8,26.2022867]
[1749404713177,1.647,2529.1,2528.8,26.2022867]
[1749404713178,1.647,2529.1,2529.0,3.95413206]
[1749404713388,9.00409861,2529.1,2529.0,3.95413206]
[1749404714280,9.00409861,2529.1,2529.0,25.44977397]
[1749404714453,8.056,2529.1,2529.0,25.44977397]
[1749404715654,1.18379766,2529.5,2529.1,3.95397572]
[1749404715874,9.00359151,2529.4,2529.1,3.95397572]
[1749404716086,0.94759151,2529.3,2529.2,3.95374395]
[1749404716243,0.94759151,2529.3,2529.2,9.44938586]
[1749404716754,7.35659151,2529.3,2529.2,9.44938586]
[1749404717488,6.409,2529.3,2529.2,9.44938586]
[1749404721171,7.35603899,2529.3,2529.2,5.49564191]
[1749404721490,7.35603899,2529.3,2529.1,3.95389968]
[1749404721790,6.409,2529.3,2529.1,3.95389968]
[1749404722974,6.409,2529.3,2529.0,16.0]
[1749404723293,7.32706903,2529.3,2529.0,16.0]
[1749404723895,6.35526971,2529.4,2529.0,16.0]
[1749404723896,1.647,2529.4,2529.2,9.4493928]
[1749404724185,8.054,2529.3,2529.2,9.4493928]
[1749404724766,1.646,2529.3,2529.2,9.4493928]
[1749404724984,8.054,2529.3,2529.2,9.4493928]
[1749404725167,1.646,2529.3,2529.2,25.4493928]
[1749404725370,8.054,2529.3,2529.2,25.4493928]
[1749404730428,1.646,2529.3,2529.2,25.4493928]
[1749404730630,8.054,2529.3,2529.2,25.4493928]
[1749404731630,1.646,2529.3,2529.2,25.4493928]
[1749404731815,17.088,2529.6,2529.5,3.95335046]
[1749404732008,26.08832565,2529.6,2529.5,9.44899237]
[1749404732211,25.142,2529.6,2529.5,9.44899237]
[1749404732795,18.734,2529.6,2529.5,9.44899237]
[1749404733013,25.142,2529.6,2529.5,9.44899237]
[1749404734320,18.734,2529.6,2529.5,9.44899237]
[1749404734528,25.142,2529.6,2529.5,9.44899237]
[1749404736398,8.054,2529.6,2529.5,9.44899237]
[1749404737331,1.646,2529.6,2529.5,9.44899237]
[1749404737529,8.054,2529.6,2529.5,9.44899237]
[1749404737938,8.054,2529.6,2529.5,25.44899237]
[1749404742647,8.054,2529.6,2529.5,21.49564191]
[1749404743015,8.054,2529.6,2529.5,25.44899237]
[1749404743216,8.054,2529.6,2529.5,19.95335046]
[1749404746226,8.054,2529.6,2529.5,25.44899237]
[1749404748154,8.054,2529.6,2529.5,21.49564191]
[1749404748355,8.054,2529.6,2529.5,25.44899237]
[1749404748717,8.054,2529.6,2529.5,16.0]
[1749404749450,8.054,2529.6,2529.5,19.95335046]
[1749404750959,8.054,2529.6,2529.5,25.44899237]
[1749404753892,1.646,2529.6,2529.5,26.23649237]
[1749404754163,0.94719097,2530.0,2529.9,3.9527254]
[1749404754324,9.00019097,2530.0,2529.9,9.44836731]
[1749404754965,1.646,2530.0,2529.9,26.23586731]
[1749404757553,1.646,2530.0,2529.9,26.63234882]
[1749404758360,3.65179509,2530.8,2529.9,6.67962342]
[1749404758560,3.65179509,2530.8,2530.4,5.49564191]
[1749404758561,7.72221788,2530.7,2530.4,5.49564191]
[1749404758759,1.31621788,2530.6,2530.4,5.49564191]
[1749404758991,6.406,2530.7,2530.4,5.49564191]
[1749404759141,1.31619786,2530.6,2530.3,3.95200853]
[1749404759478,0.3702113,2530.5,2530.3,3.95200853]
[1749404759654,6.406,2530.4,2530.3,19.95200853]
[1749404760271,6.41972532,2530.8,2530.3,19.95200853]
[1749404760454,7.72199153,2530.7,2530.3,19.95200853]
[1749404760790,0.94577978,2530.6,2530.3,19.95200853]
[1749404760971,6.406,2530.7,2530.3,19.95200853]
[1749404761172,0.94577544,2530.6,2530.3,19.95200853]
[1749404761340,6.406,2530.7,2530.3,19.95200853]
[1749404761543,0.94583455,2530.6,2530.3,19.95200853]
[1749404761787,6.406,2530.7,2530.3,19.95200853]
[1749404762092,0.94557765,2530.6,2530.3,19.95200853]
[1749404762258,6.406,2530.7,2530.3,19.95200853]
[1749404762443,0.94539433,2530.6,2530.3,19.95200853]
[1749404762780,6.406,2530.7,2530.3,19.95200853]
[1749404762947,0.94539274,2530.6,2530.3,19.95200853]
[1749404763147,6.406,2530.7,2530.3,19.95200853]
[1749404765858,10.35750335,2530.7,2530.3,16.0]
[1749404766082,0.7869,2530.4,2530.3,16.0]
[1749404766245,7.1919,2530.4,2530.3,16.0]
[1749404768698,7.1919,2530.4,2530.0,3.95256736]
[1749404769392,11.14385033,2530.4,2530.0,3.95256736]
[1749404769578,7.1919,2530.4,2530.0,3.95256736]
[1749404769780,8.70145158,2530.4,2529.9,19.95264288]
[1749404769979,8.70145158,2530.4,2530.0,3.95248663]
[1749404771771,8.70145158,2530.4,2530.1,16.0]
[1749404772614,8.70145158,2530.4,2530.0,3.95248663]
[1749404772615,8.70145158,2530.4,2530.0,19.95255005]
[1749404772815,2.29645158,2530.4,2530.2,3.95224988]
[1749404772996,6.405,2530.3,2530.2,3.95224988]
[1749404773497,6.405,2530.3,2530.1,3.95234665]
[1749404773705,1.645,2530.2,2530.1,3.95234665]
[1749404776541,1.645,2530.2,2530.0,19.95248311]
[1749404777430,1.645,2530.2,2530.1,3.95241294]
[1749404777991,1.645,2530.2,2530.0,19.95248254]
[1749404778239,1.645,2530.2,2530.1,3.95241294]
[1749404779639,1.645,2530.2,2530.0,19.95250679]
[1749404783543,0.7869,2530.4,2530.0,19.95250679]
[1749404783720,8.99662853,2530.3,2530.1,3.95232597]
[1749404783926,8.049,2530.3,2530.0,19.95250195]
[1749404784322,0.94793176,2530.2,2530.0,19.95250195]
[1749404784527,8.049,2530.3,2530.0,19.95250195]
[1749404785274,0.94793194,2530.2,2530.0,19.95250195]
[1749404785482,8.049,2530.3,2530.0,19.95250195]
[1749404785966,0.94796172,2530.2,2530.0,19.95250195]
[1749404786136,8.049,2530.3,2530.0,19.95250195]
[1749404786880,0.94796234,2530.2,2530.0,19.95250195]
[1749404787183,8.049,2530.3,2530.2,3.95225673]
[1749404787476,9.99889222,2530.3,2530.2,3.95225673]
[1749404793505,10.3692579,2530.3,2530.2,3.95225673]
[1749404793702,9.99889222,2530.3,2530.2,3.95225673]
[1749404793870,10.36937434,2530.3,2530.2,3.95225673]
[1749404794065,10.36937338,2530.3,2530.2,3.95225673]
[1749404794293,9.99889222,2530.3,2530.2,3.95225673]
[1749404794493,10.36937407,2530.3,2530.2,3.95225673]
[1749404794807,10.369375,2530.3,2530.2,3.95225673]
[1749404795310,9.99889222,2530.3,2530.2,3.95225673]
[1749404795669,10.36937301,2530.3,2530.2,3.95225673]
[1749404795910,9.99889222,2530.3,2530.2,3.95225673]
[1749404796071,10.36937361,2530.3,2530.2,3.95225673]
[1749404796269,10.36937298,2530.3,2530.2,3.95225673]
[1749404796967,9.99889222,2530.3,2530.2,3.95225673]
[1749404797367,10.36945769,2530.3,2530.2,3.95225673]
[1749404797608,9.99889222,2530.3,2530.2,3.95225673]
[1749404798118,10.36945718,2530.3,2530.2,3.95225673]
[1749404798485,10.36946008,2530.3,2530.2,3.95225673]
[1749404798884,10.36946128,2530.3,2530.2,3.95225673]
[1749404799083,9.99889222,2530.3,2530.2,3.95225673]
[1749404800323,10.36947323,2530.3,2530.2,3.95225673]
[1749404800529,2.59296271,2530.3,2530.2,19.95225673]
[1749404800746,8.049,2530.3,2530.2,20.78155673]
[1749404800887,1.18339509,2530.8,2530.7,3.95147587]
[1749404801087,8.99751712,2530.8,2530.7,9.44711778]
[1749404801396,9.36802597,2530.8,2530.7,9.44711778]
[1749404801595,9.3680258,2530.8,2530.7,9.44711778]
[1749404802111,8.99751712,2530.8,2530.7,9.44711778]
[1749404803035,9.36802398,2530.8,2530.7,9.44711778]
[1749404803193,8.99751712,2530.8,2530.4,19.95189657]
[1749404803524,0.94708669,2530.7,2530.6,16.0]
[1749404804718,0.94699503,2530.7,2530.6,16.0]
[1749404805124,1.31695289,2530.7,2530.4,3.95190885]
[1749404805304,7.34999503,2530.6,2530.3,19.95209708]
[1749404805505,7.34999503,2530.6,2530.1,4.78165762]
[1749404805506,1.76925855,2530.5,2530.1,19.95226969]
[1749404805726,6.403,2530.4,2530.3,3.95208499]
[1749404806833,6.403,2530.4,2529.9,6.27004191]
[1749404806834,7.12553,2530.4,2530.0,16.0]
[1749404807048,6.403,2530.4,2530.3,16.0]
[1749404808810,7.35003399,2530.4,2530.3,16.0]
[1749404809144,7.35003399,2530.4,2530.2,16.0]
[1749404809339,6.403,2530.4,2530.2,16.0]
[1749404809709,1.645,2530.3,2530.2,19.95223678]
[1749404810641,1.645,2530.3,2530.2,16.0]
[1749404811219,1.645,2530.3,2530.2,19.95225673]
[1749404812741,1.645,2530.3,2530.2,16.0]
[1749404812950,1.645,2530.3,2530.2,19.95225673]
[1749404813536,1.645,2530.3,2530.2,16.0]
[1749404813742,1.645,2530.3,2530.2,19.95225673]
[1749404815218,0.7839,2530.2,2530.0,3.95249964]
[1749404815444,7.3501073,2530.1,2530.0,3.95249964]
[1749404815608,1.99740648,2530.5,2530.3,3.95210054]
[1749404815811,1.31704204,2530.4,2530.3,3.95210054]
[1749404816140,9.36402691,2530.4,2530.3,3.95210054]
[1749404816345,8.99404499,2530.4,2530.3,3.95210054]
[1749404816660,9.36402434,2530.4,2530.3,3.95210054]
[1749404816952,9.3640462,2530.4,2530.3,3.95210054]
[1749404817158,9.3640462,2530.4,2530.2,9.44783512]
[1749404817311,0.94704499,2530.3,2530.2,9.44783512]
[1749404818344,0.94704499,2530.3,2530.2,25.44783512]
[1749404818551,8.047,2530.4,2530.3,20.76280054]
[1749404821231,1.644,2530.4,2530.3,20.76280054]
[1749404824449,1.644,2530.4,2530.3,19.95210054]
[1749404825533,1.644,2530.6,2530.5,3.95178818]
[1749404825734,17.08,2531.0,2530.8,3.95131134]
[1749404825930,9.36243623,2530.9,2530.8,3.95131134]
[1749404826142,9.36242608,2530.9,2530.8,3.95131134]
[1749404826598,8.99257497,2530.9,2530.8,3.95131134]
[1749404826941,8.99257497,2530.9,2530.7,5.49564191]
[1749404827163,8.046,2530.9,2530.7,5.49564191]
[1749404829083,8.046,2530.9,2530.6,19.95155407]
[1749404829840,8.046,2530.9,2530.7,5.49564191]
[1749404830038,6.402,2530.8,2530.7,25.44711778]
[1749404834122,17.08,2531.0,2530.7,25.44711778]
[1749404834276,6.402,2530.8,2530.7,25.44711778]
[1749404837490,6.401,2530.8,2530.7,25.44711778]
[1749404839005,6.401,2530.8,2530.7,21.49564191]
[1749404840114,6.401,2530.8,2530.7,25.44711778]
[1749404840815,6.401,2530.8,2530.7,21.49564191]
[1749404841027,6.401,2530.8,2530.7,16.0]
[1749404842628,17.08,2531.0,2530.7,16.0]
[1749404842629,17.08,2531.0,2530.7,19.95146169]
[1749404842922,17.08,2531.0,2530.9,25.44680552]
[1749404843133,24.42710718,2531.0,2530.9,25.44680552]
[1749404843299,23.481,2531.0,2530.9,25.44680552]
[1749404847727,6.401,2531.0,2530.9,25.44680552]
[1749404848627,6.401,2531.0,2530.9,21.49564191]
[1749404849234,6.401,2531.0,2530.9,16.0]
[1749404849235,10.3520075,2531.0,2530.9,16.0]
[1749404849393,0.8165,2530.8,2530.3,19.95198129]
[1749404849592,6.4,2530.7,2530.5,16.0]
[1749404850107,6.4,2530.7,2530.3,19.95202123]
[1749404850423,6.4,2530.7,2530.5,16.0]
[1749404850634,6.4,2530.7,2530.3,16.0]
[1749404850816,2.06899348,2530.6,2529.9,4.77906315]
[1749404851016,11.99491044,2530.5,2530.0,3.95256916]
[1749404851220,0.94694755,2530.4,2530.0,3.95256916]
[1749404851393,6.4,2530.3,2530.1,16.0]
[1749404851931,6.4,2530.3,2530.1,19.95236358]
[1749404852696,0.7522,2530.2,2529.9,16.0]
[1749404853006,6.401,2530.1,2529.8,3.95279899]
[1749404853205,6.401,2530.2,2530.0,5.49564191]
[1749404854019,6.401,2530.4,2530.2,3.95210255]
[1749404854196,6.401,2530.4,2530.3,5.49564191]
[1749404854733,6.401,2530.4,2530.2,3.9521873]
[1749404855031,6.401,2530.4,2530.2,16.0]
[1749404858394,6.401,2530.4,2530.1,16.0]